Workbook

Sheet Dislcaimer
A1: Interest Rate Derivatives Explained II (Illustrations)
A5: This sheet does only serve for illustration purposes! It illustrates pricing using MC for Hull-White covering method of Andersen& Piterbarg and C. Fries | K5: The code comes with BSD License
K6: 'Copyright 2017 Dr. Joerg Kienitz
A7: This illustration and any accompanying material are being provided solely for information and general illustrative
A8: purposes. The author will not be responsible for the consequences of reliance upon any information contained in or | K8: 'Redistribution and use in source and binary forms, with or without modification,
A9: derived from the presentation or for any omission of information therefrom and hereby excludes all liability for loss | K9: 'are permitted provided that the following conditions are met:
A10: or damage (including, without limitation, direct, indirect, foreseeable, or consequential loss or damage and
A11: including loss or profit and even if advised of the possibility of such damages or if such damages were foreseeable) | K11: '1. Redistributions of source code must retain the above copyright notice,
A12: that may be incurred or su ered by any person in connection with the presentation, including (without limitation) | K12: 'this list of conditions and the following disclaimer.
A13: for the consequences of reliance upon any results derived therefrom or any error or omission whether negligent or
A14: not. No representation or warranty is made or given by the author that the presentation or any content thereof will | K14: '2. Redistributions in binary form must reproduce the above copyright notice,
A15: be error free, updated, complete or that inaccuracies, errors or defects will be corrected. | K15: 'this list of conditions and the following disclaimer in the documentation
A16: The views are solely that of the author. | K16: 'and/or other materials provided with the distribution.
A17: The presentation may not be reproduced in whole or part or delivered to any other person without prior permission
A18: of the author. It is accompanying material for the book Interest Rate Derivatives Explained II! | K18: '3. Neither the name of the copyright holder nor the names of its contributors
K19: 'may be used to endorse or promote products derived from this software without
A20: For comments, hints, bugs or suggestions, please, | K20: 'specific prior written permission.
A21: Contact:
A22: joerg.kienitz@gmx.de | K22: 'THIS SOFTWARE IS PROVIDED BY THE COPYRIGHT HOLDERS AND CONTRIBUTORS
K23: '"AS IS" AND ANY EXPRESS OR IMPLIED WARRANTIES, INCLUDING, BUT NOT LIMITED TO,
K24: 'THE IMPLIED WARRANTIES OF MERCHANTABILITY AND FITNESS FOR A PARTICULAR PURPOSE
K25: 'ARE DISCLAIMED. IN NO EVENT SHALL THE COPYRIGHT HOLDER OR CONTRIBUTORS BE LIABLE
K26: 'FOR ANY DIRECT, INDIRECT, INCIDENTAL, SPECIAL, EXEMPLARY, OR CONSEQUENTIAL DAMAGES
K27: '(INCLUDING, BUT NOT LIMITED TO, PROCUREMENT OF SUBSTITUTE GOODS OR SERVICES;
K28: 'LOSS OF USE, DATA, OR PROFITS; OR BUSINESS INTERRUPTION) HOWEVER CAUSED AND ON
K29: 'ANY THEORY OF LIABILITY, WHETHER IN CONTRACT, STRICT LIABILITY,
K30: 'OR TORT (INCLUDING NEGLIGENCE OR OTHERWISE) ARISING IN ANY WAY OUT OF THE USE OF
K31: 'THIS SOFTWARE, EVEN IF ADVISED OF THE POSSIBILITY OF SUCH DAMAGE.

Sheet INPUT
B1: delta_t | C1: 0.5 | I1: MC | K1: Analytic | N1: Analytic
A2: ATM | B2: strike | C2: 0.05 | D2: =(1-C18)/(SUM(C11:C18)*0.5) -> 0.05063024105 | G2: swpt/cpl | H2: 1 | I2: 50.00841087 | J2: 1.514637699e-05 | K2: =hw_cflet(IF(H4=1,"c","p"),C4,C5,H6,H5,H5+0.5)*10000 -> 50.04199809 | L2: Caplet | M2: Swaption | N2: =hw_coupon_opt(C4,C5,H5,H5+S2,H6,1,1,IF(S5=1,"p","r"))*10000 -> 454.2021974 | O2: 454.1222357 | P2: 0.0001280141956 | R2: Swaptenor | S2: 5
B3: CapStrike^{-1} | C3: =1+C2*C1 -> 1.025 | G3: cpltenor | H3: 0.5 | R3: Swapperiod | S3: 1
B4: kappa | C4: 0.015 | F4: 1/-1 | G4: cpl/fl | H4: 1 | I4: 50.03987941 | J4: 1.521829575e-05 | O4: 454.2791507 | P4: 0.0001277670495 | R4: Strike | S4: 0.04
B5: sigma | C5: 0.008 | G5: T | H5: 7 | I5: 0.9749645065 | R5: PayRec | S5: 1 | T5: 1/-1
G6: Strike | H6: 0.04
A9: Time | B9: Zero Curve | C9: NPV | D9: Fwd | E9: Caplet | F9: Floorlet | G9: Cap | H9: Floor | M9: Nsim | N9: 100000
A10: 0 | B10: 0.05 | C10: =_xludf.pv(A10) -> 1 | D10: =-1/$C$1*LN(C11/C10) -> 0.05 | E10: 0 | F10: 0 | G10: =SUM($E$10:E10) -> 0 | H10: =SUM($F$10:F10) -> 0 | M10: Nt | N10: 1
A11: =A10+$C$1 -> 0.5 | B11: =-LN(C11)/A11 -> 0.05 | C11: =_xludf.pv(A11) -> 0.975309912 | D11: 0.05 | E11: =$C$3*hw_zero_opt("p",$C$4,$C$5,1/$C$3,A11,A12,C11,C12)*10000 -> 12.48552174 | F11: =$C$3*hw_zero_opt("c",$C$4,$C$5,1/$C$3,A11,A12,C11,C12)*10000 -> 9.488002592 | G11: =SUM($E$10:E11) -> 12.48552174 | H11: =SUM($F$10:F11) -> 9.488002592
A12: 1 | B12: =-LN(C12)/A12 -> 0.05 | C12: 0.9512294245 | D12: 0.05 | E12: =$C$3*hw_zero_opt("p",$C$4,$C$5,1/$C$3,A12,A13,C12,C13)*10000 -> 16.51466605 | F12: =$C$3*hw_zero_opt("c",$C$4,$C$5,1/$C$3,A12,A13,C12,C13)*10000 -> 13.59115591 | G12: =SUM($E$10:E12) -> 29.0001878 | H12: =SUM($F$10:F12) -> 23.0791585
A13: 1.5 | B13: 0.05 | C13: 0.9277434863 | D13: 0.05 | E13: =$C$3*hw_zero_opt("p",$C$4,$C$5,1/$C$3,A13,A14,C13,C14)*10000 -> 19.32187243 | F13: =$C$3*hw_zero_opt("c",$C$4,$C$5,1/$C$3,A13,A14,C13,C14)*10000 -> 16.47054401 | G13: =SUM($E$10:E13) -> 48.32206022 | H13: =SUM($F$10:F13) -> 39.54970252
A14: 2 | B14: 0.05 | C14: 0.904837418 | D14: 0.05 | E14: 21.46029771 | F14: 18.67936885 | G14: =SUM($E$10:E14) -> 69.78235794 | H14: =SUM($F$10:F14) -> 58.22907136
A15: 2.5 | B15: 0.05 | C15: 0.8824969026 | D15: 0.05 | E15: 23.15340243 | F15: 20.44113494 | G15: =SUM($E$10:E15) -> 92.93576037 | H15: =SUM($F$10:F15) -> 78.6702063
A16: 3 | B16: 0.05 | C16: 0.8607079764 | D16: 0.05 | E16: 24.52024976 | F16: 21.87494839 | G16: =SUM($E$10:E16) -> 117.4560101 | H16: =SUM($F$10:F16) -> 100.5451547
A17: 3.5 | B17: 0.05 | C17: 0.8394570208 | D17: 0.05 | E17: 25.63418835 | F17: 23.05419971 | G17: =SUM($E$10:E17) -> 143.0901985 | H17: =SUM($F$10:F17) -> 123.5993544
A18: 4 | B18: 0.05 | C18: 0.8187307531 | D18: 0.05 | E18: 26.54470513 | F18: 24.02841663 | G18: =SUM($E$10:E18) -> 169.6349036 | H18: =SUM($F$10:F18) -> 147.627771
A19: 4.5 | B19: 0.05 | C19: 0.7985162188 | D19: 0.05 | E19: 27.28733963 | F19: 24.83317852 | G19: =SUM($E$10:E19) -> 196.9222432 | H19: =SUM($F$10:F19) -> 172.4609496
A20: 5 | B20: 0.05 | C20: 0.7788007831 | D20: 0.05 | E20: 27.88880204 | F20: 25.49523438 | G20: =SUM($E$10:E20) -> 224.8110453 | H20: =SUM($F$10:F20) -> 197.9561839
A21: 5.5 | B21: 0.05 | C21: 0.7595721232 | D21: 0.05 | E21: 28.36987023 | F21: 26.03539997 | G21: =SUM($E$10:E21) -> 253.1809155 | H21: =SUM($F$10:F21) -> 223.9915839
A22: 6 | B22: 0.05 | C22: 0.7408182207 | D22: 0.05 | E22: 28.74714764 | F22: 26.47031565 | G22: =SUM($E$10:E22) -> 281.9280631 | H22: =SUM($F$10:F22) -> 250.4618996
A23: 6.5 | B23: 0.05 | C23: 0.7225273536 | D23: 0.05 | E23: 29.03418969 | F23: 26.81357288 | G23: =SUM($E$10:E23) -> 310.9622528 | H23: =SUM($F$10:F23) -> 277.2754724
A24: 7 | B24: 0.05 | C24: 0.7046880897 | D24: 0.05 | E24: 29.24225794 | F24: 27.07646836 | G24: =SUM($E$10:E24) -> 340.2045108 | H24: =SUM($F$10:F24) -> 304.3519408
A25: 7.5 | B25: 0.05 | C25: 0.6872892788 | D25: 0.05 | E25: 29.38084374 | F25: 27.26852769 | G25: =SUM($E$10:E25) -> 369.5853545 | H25: =SUM($F$10:F25) -> 331.6204685
A26: 8 | B26: 0.05 | C26: 0.670320046 | D26: 0.05 | E26: 29.45804302 | F26: 27.39788025 | G26: =SUM($E$10:E26) -> 399.0433975 | H26: =SUM($F$10:F26) -> 359.0183487
A27: 8.5 | B27: 0.05 | C27: 0.6537697851 | D27: 0.05 | E27: 29.48083166 | F27: 27.47153448 | G27: =SUM($E$10:E27) -> 428.5242292 | H27: =SUM($F$10:F27) -> 386.4898832
A28: 9 | B28: 0.05 | C28: 0.6376281516 | D28: 0.05 | E28: 29.4552723 | F28: 27.49558485 | G28: =SUM($E$10:E28) -> 457.9795015 | H28: =SUM($F$10:F28) -> 413.9854681
A29: 9.5 | B29: 0.05 | C29: 0.6218850565 | D29: 0.05 | E29: 29.38667286 | F29: 27.47537026 | G29: =SUM($E$10:E29) -> 487.3661743 | H29: =SUM($F$10:F29) -> 441.4608383
A30: 10 | B30: 0.05 | C30: 0.6065306597
A34: Pricing Swaption
A37: T (Option) | B37: 7
A38: T (Bond) | B38: 10
A39: Strike | B39: =atm(B37,B38,1) -> 0.05127109638
A40: delta_t | B40: 1
B41: swaption | D41: bond
B42: Payers | C42: Receivers
B43: =hw_coupon_opt(C4,C5,B37,B38,B39,B40,1,"p")*10000 -> 157.8817631 | C43: =hw_coupon_opt(C4,C5,B37,B38,B39,B40,1,"c")*10000 -> 157.8817631
B44: =hw_coupon_opt(C4,C5,B37,B37+B38,B39,+B40,1,"p")*10000 -> 425.3843842 | C44: =hw_coupon_opt(C4,C5,B37,B37+B38,B39,+B40,1,"c")*10000 -> 425.3843842

Sheet MC HW
B1: dt | C1: 1
B3: x(t) | C3: I(t) | F3: f(0,t) | G3: r(t) = x(t) + f(0,t) | H3: DF | I3: Sum x(t) | J3: Trapz x(t) | K3: DF Sum | L3: DF Trapz
A4: 0 | B4: 0 | C4: 0 | F4: =forward(A4) -> 0.05 | G4: =B4+F4 -> 0.05 | H4: =EXP(C4) -> 1 | I4: 0 | J4: =SUM($I$18:I18) -> 0.004064077466 | K4: =EXP(I4) -> 1 | L4: =EXP(J4) -> 1.004072347
A5: =A4+$C$1 -> 1 | B5: =HW_MC(B4,C4,INPUT!$C$4,INPUT!$C$5,A5,A4,D5,E5) -> -0.008128154933 | C5: -0.005338428891 | D5: =_xlfn.NORM.S.INV(RAND()) -> -1.027619078 | E5: -0.5404571707 | F5: 0.05 | G5: 0.04187184507 | H5: 0.9946757952 | I5: =-SUM($B$4:B5)*$C$1 -> 0.008128154933 | J5: =SUM($I$18:I19) -> 0.01230895278 | K5: =EXP(I5) -> 1.008161278 | L5: =EXP(J5) -> 1.01238502
A6: =A5+$C$1 -> 2 | B6: =HW_MC(B5,C5,INPUT!$C$4,INPUT!$C$5,A6,A5,D6,E6) -> -0.008361595697 | C6: 0.002212253331 | D6: -0.05637326015 | E6: -0.1088621511 | F6: 0.05 | G6: 0.0416384043 | H6: 1.002214702 | I6: =-SUM($B$4:B6)*$C$1 -> 0.01648975063 | J6: =SUM($I$18:I20) -> 0.01788494032 | K6: 1.016626457 | L6: 1.018045834
A7: 3 | B7: =HW_MC(B6,C6,INPUT!$C$4,INPUT!$C$5,A7,A6,D7,E7) -> -0.002790379385 | C7: 0.0158918246 | D7: 0.666685466 | E7: 1.214744504 | F7: 0.05 | G7: 0.04720962061 | H7: 1.016018771 | I7: =-SUM($B$4:B7)*$C$1 -> 0.01928013002 | J7: =SUM($I$18:I21) -> 0.02656062107 | K7: 1.019467192 | L7: 1.026916498
A8: 4 | B8: =HW_MC(B7,C7,INPUT!$C$4,INPUT!$C$5,A8,A7,D8,E8) -> -0.0145609821 | C8: 0.007237204493 | D8: -1.51418576 | E8: -2.300059184 | F8: 0.05 | G8: 0.0354390179 | H8: 1.007263456 | I8: =-SUM($B$4:B8)*$C$1 -> 0.03384111212 | J8: =SUM($I$18:I22) -> 0.03766294025 | K8: 1.034420237 | L8: 1.038381177
A9: 5 | B9: =HW_MC(B8,C8,INPUT!$C$4,INPUT!$C$5,A9,A8,D9,E9) -> -0.007643656273 | C9: 0.0254112014 | D9: 0.8101817401 | E9: 0.2747660649 | F9: 0.05 | G9: 0.04235634373 | H9: 1.025736818 | I9: =-SUM($B$4:B9)*$C$1 -> 0.04148476839 | J9: =SUM($I$18:I23) -> 0.04446376763 | K9: 1.042357285 | L9: 1.045467096
A10: 6 | B10: =HW_MC(B9,C9,INPUT!$C$4,INPUT!$C$5,A10,A9,D10,E10) -> -0.005957998475 | C10: 0.03026996338 | D10: 0.1573964696 | E10: -1.383845233 | F10: 0.05 | G10: 0.04404200152 | H10: 1.030732756 | I10: =-SUM($B$4:B10)*$C$1 -> 0.04744276686 | J10: =SUM($I$18:I24) -> 0.05227585677 | K10: 1.048586186 | L10: 1.053666363
A11: 7 | B11: =HW_MC(B10,C10,INPUT!$C$4,INPUT!$C$5,A11,A10,D11,E11) -> -0.009666179821 | C11: 0.03345330676 | D11: -0.5254181918 | E11: -0.1994379335 | F11: 0.05 | G11: 0.04033382018 | H11: 1.034019161 | I11: =-SUM($B$4:B11)*$C$1 -> 0.05710894668 | J11: =SUM($I$18:I25) -> 0.06546048576 | K11: 1.058771154 | L11: 1.067650549
A12: 8 | B12: =HW_MC(B11,C11,INPUT!$C$4,INPUT!$C$5,A12,A11,D12,E12) -> -0.01670307815 | C12: 0.03779358914 | D12: -0.9580699893 | E12: -0.5371713678 | F12: 0.05 | G12: 0.03329692185 | H12: 1.03851685 | I12: =-SUM($B$4:B12)*$C$1 -> 0.07381202483 | J12: =SUM($I$18:I26) -> 0.08086592208 | K12: 1.076604412 | L12: 1.084225516
A13: 9 | B13: =HW_MC(B12,C12,INPUT!$C$4,INPUT!$C$5,A13,A12,D13,E13) -> -0.01410779451 | C13: 0.05385436153 | D13: 0.2355068697 | E13: -0.5273657008 | F13: 0.05 | G13: 0.03589220549 | H13: 1.055330894 | I13: =-SUM($B$4:B13)*$C$1 -> 0.08791981934 | J13: =SUM($I$18:I27) -> 0.0989403498 | K13: 1.091900569 | L13: 1.104000444
A14: 10 | B14: =HW_MC(B13,C13,INPUT!$C$4,INPUT!$C$5,A14,A13,D14,E14) -> -0.02204106092 | C14: 0.06162065703 | D14: -1.091685746 | E14: -0.7114101978 | F14: 0.05 | G14: 0.02795893908 | H14: 1.063558815 | I14: =-SUM($B$4:B14)*$C$1 -> 0.1099608803 | J14: =SUM($I$18:I28) -> 0.1099608803 | K14: 1.116234403 | L14: 1.116234403
B17: x(t) Approx | C17: I(t) Approx | F17: f(0,t) | G17: r(t) Approx= x(t) Approx + f(0,t) | H17: DF Approx
A18: 0 | B18: 0 | C18: 0 | F18: =forward(A18) -> 0.05 | G18: =B18+F18 -> 0.05 | H18: =EXP(C18) -> 1 | I18: =-$C$1/2*(B4+B5) -> 0.004064077466
A19: =A18+$C$1 -> 1 | B19: =HW_MC_Approx(B18,C18,INPUT!$C$4,INPUT!$C$5,A19,A18,D19) -> -0.008220952622 | C19: 0 | D19: =D5 -> -1.027619078 | F19: 0.05 | G19: 0.04177904738 | H19: 1 | I19: 0.008244875315
A20: =A19+$C$1 -> 2 | B20: =HW_MC_Approx(B19,C19,INPUT!$C$4,INPUT!$C$5,A20,A19,D20) -> -0.008486965652 | C20: 0.008220952622 | D20: -0.05637326015 | F20: 0.05 | G20: 0.04151303435 | H20: 1.008254837 | I20: 0.005575987541
A21: 3 | B21: =HW_MC_Approx(B20,C20,INPUT!$C$4,INPUT!$C$5,A21,A20,D21) -> -0.002903818931 | C21: 0.01670791827 | D21: 0.666685466 | F21: 0.05 | G21: 0.04709618107 | H21: 1.016848276 | I21: 0.008675680743
A22: 4 | B22: =HW_MC_Approx(B21,C21,INPUT!$C$4,INPUT!$C$5,A22,A21,D22) -> -0.01479182955 | C22: 0.0196117372 | D22: -1.51418576 | F22: 0.05 | G22: 0.03520817045 | H22: 1.019805311 | I22: 0.01110231919
A23: 5 | B23: =HW_MC_Approx(B22,C22,INPUT!$C$4,INPUT!$C$5,A23,A22,D23) -> -0.007850717835 | C23: 0.03440356675 | D23: 0.8101817401 | F23: 0.05 | G23: 0.04214928217 | H23: 1.035002215 | I23: 0.006800827374
A24: 6 | B24: =HW_MC_Approx(B23,C23,INPUT!$C$4,INPUT!$C$5,A24,A23,D24) -> -0.00617972537 | C24: 0.04225428459 | D24: 0.1573964696 | F24: 0.05 | G24: 0.04382027463 | H24: 1.043159704 | I24: 0.007812089148
A25: 7 | B25: =HW_MC_Approx(B24,C24,INPUT!$C$4,INPUT!$C$5,A25,A24,D25) -> -0.009942265779 | C25: 0.04843400996 | D25: -0.5254181918 | F25: 0.05 | G25: 0.04005773422 | H25: 1.049626105 | I25: 0.01318462898
A26: 8 | B26: =HW_MC_Approx(B25,C25,INPUT!$C$4,INPUT!$C$5,A26,A25,D26) -> -0.01705773325 | C26: 0.05837627574 | D26: -0.9580699893 | F26: 0.05 | G26: 0.03294226675 | H26: 1.060113816 | I26: 0.01540543633
A27: 9 | B27: =HW_MC_Approx(B26,C26,INPUT!$C$4,INPUT!$C$5,A27,A26,D27) -> -0.01446792478 | C27: 0.07543400899 | D27: 0.2355068697 | F27: 0.05 | G27: 0.03553207522 | H27: 1.078352064 | I27: 0.01807442771
A28: 10 | B28: =HW_MC_Approx(B27,C27,INPUT!$C$4,INPUT!$C$5,A28,A27,D28) -> -0.02248498807 | C28: 0.08990193377 | D28: -1.091685746 | F28: 0.05 | G28: 0.02751501193 | H28: 1.094066987 | I28: =-$C$1/2*(B14+C15) -> 0.01102053046
B30: Rel Error r | C30: Rel Erro DF
B31: =(B5-B19)/B5 -> -0.01141682089 | C31: =(H4-H18) -> 0
B32: -0.01499354423 | C32: -0.005324204802
B33: -0.04065380716 | C33: -0.006040135276
B34: -0.01585383779 | C34: -0.0008295049193
B35: -0.02708933456 | C35: -0.01254185434
B36: -0.03721499694 | C36: -0.00926539671
B37: -0.0285620548 | C37: -0.01242694797
B38: -0.02123291904 | C38: -0.01560694377
B39: -0.02552704315 | C39: -0.02159696619
B40: -0.02014091542 | C40: -0.02302116964
